lending/lending_fUSD_20240120
["ID","MTS","AMOUNT","RATE_DAILY","PERIOD"]
[312324534,1705775450716,-5839.85633545,0.00035709,4]
[312324535,1705775450727,-1634.24456455,0.00035709,3]
[312324536,1705775450738,-155.0,0.00035709,4]
[312324537,1705775450759,-200.0,0.00035709,2]
[312324538,1705775450769,-819.8312848,0.00035709,4]
[312324539,1705775450779,-435.17009699,0.00035709,4]
[312324540,1705775450790,-838.0844007,0.00035709,2]
[312324541,1705775450801,-683.8796574,0.00035709,4]
[312324542,1705775450811,-2000.0,0.00035709,2]
[312324543,1705775450820,-200.0,0.00035709,2]
[312324544,1705775450830,-226.13902132,0.00035709,4]
[312324545,1705775450839,-1097.3241355,0.00035709,4]
[312324546,1705775450851,-2000.0,0.00035709,2]
[312324547,1705775450861,-200.0,0.00035709,2]
[312324548,1705775450870,-2000.0,0.00035709,2]
[312324549,1705775450879,-200.0,0.00035709,2]
[312324550,1705775450890,-151.0,0.00035709,7]
[312324551,1705775450899,-151.0,0.00035709,7]
[312324552,1705775450907,-225.936,0.00035709,7]
[312324553,1705775450916,-225.936,0.00035709,7]
[312324554,1705775450925,-175.860325,0.00035709,7]
[312324555,1705775450934,-175.860325,0.00035709,7]
[312324556,1705775450942,-151.0,0.00035709,7]
[312324557,1705775450951,-151.0,0.00035709,7]
[312324558,1705775450960,-151.0,0.00035709,7]
[312324559,1705775450969,-243.15262924,0.00035738,2]
[312324560,1705775450978,-151.0,0.00035747,7]
[312324561,1705775450987,-238.616255,0.00035747,7]
[312324562,1705775451000,-466.231375,0.00035747,7]
[312324563,1705775451010,-466.231375,0.00035747,7]
[312324564,1705775451019,-151.0,0.00035747,7]
[312324565,1705775451027,-151.0,0.00035747,7]
[312324566,1705775451036,-297.790666,0.00035747,7]
[312324567,1705775451045,-297.790666,0.00035747,7]
[312324568,1705775451055,-369.513576,0.00035747,7]
[312324569,1705775451064,-369.513576,0.00035747,7]
[312324570,1705775451074,-151.0,0.00035747,7]
[312324571,1705775451083,-220.195027,0.00035748,7]
[312324572,1705775451092,-220.195027,0.00035748,7]
[312324573,1705775451102,-1446.432708,0.00035748,7]
[312324574,1705775451111,-1446.432708,0.00035748,7]
[312324575,1705775451120,-151.0,0.00035748,7]
[312324576,1705775451129,-5419.892644,0.00035748,7]
[312324577,1705775451138,-5419.892644,0.00035748,7]
[312324578,1705775451147,-2459.887998,0.00035748,7]
[312324579,1705775451156,-2459.887998,0.00035748,7]
[312324580,1705775451165,-745.938325,0.00035755,7]
[312324581,1705775451174,-745.938325,0.00035755,7]
[312324582,1705775451184,-478.285678,0.00035755,7]
[312324583,1705775451193,-478.285678,0.00035755,7]
[312324584,1705775451202,-190.436654,0.00035755,7]
[312324585,1705775451212,-190.436654,0.00035755,7]
[312324586,1705775451222,-194830.04973996,0.00035755,2]
[312324587,1705775451231,-873.00088232,0.00035755,2]
[312324588,1705775451240,-26382.18960439,0.00035755,2]
[312324589,1705775451252,-9117.56916207,0.00035755,2]
[312324590,1705775451261,-460.70912534,0.00035755,2]
[312324591,1705775451271,-378.8015576,0.00035755,2]
[312324592,1705775451281,-158.8948,0.00035755,2]
[312324593,1705775451290,-14557.65848757,0.00035755,2]
[312324594,1705775451299,-226.79453617,0.00035755,2]
[312324595,1705775451309,-2037.52451759,0.00035755,2]
[312324596,1705775451318,-386.34323903,0.00035755,2]
[312324597,1705775451328,-523.83152602,0.00035755,2]
[312324598,1705775451337,-9778.12357084,0.00035755,2]
[312324599,1705775451346,-991.44818555,0.00035755,2]
[312324600,1705775451356,-348.46187818,0.00035755,2]
[312324601,1705775451365,-427.88300398,0.00035755,2]
[312324602,1705775451374,-9334.51542201,0.00035755,2]
[312324603,1705775451384,-1756.55124974,0.00035755,2]
[312324604,1705775451392,-6004.58956354,0.00035755,2]
[312324605,1705775451402,-2276.58042038,0.00035755,2]
[312324606,1705775451411,-6077.73592096,0.00035755,2]
[312324607,1705775451419,-1000.0,0.00035755,2]
[312324608,1705775451429,-1561.388346,0.00035755,2]
[312324609,1705775451438,-7677.93,0.00035755,2]
[312324610,1705775451447,-2258.0,0.00035845,2]
[312324611,1705775451457,-2443.159,0.00035845,2]
[312324612,1705775451466,-298.782,0.00035845,2]
[312324613,1705775451476,-1030.0,0.00035845,2]
[312324614,1705775451486,-2000.0,0.00035974,2]
[312324615,1705775451495,-200.0,0.00035974,2]
[312324616,1705775451506,-100000.0,0.00036,6]
[312324617,1705775451517,-4118.727254,0.00036,2]
[312324618,1705775451526,-427311.35999402,0.00036,7]
[312324619,1705775451537,-804.0,0.00036,2]
[312324620,1705775451546,-151.0,0.00036,7]
[312324621,1705775451557,-151.0,0.00036,7]
[312324622,1705775451566,-151.0,0.00036,7]
[312324623,1705775451576,-581.01846,0.00036,7]
[312324624,1705775451586,-581.01846,0.00036,7]
[312324625,1705775451595,-393.169667,0.00036,7]
[312324626,1705775451605,-393.169667,0.00036,7]
[312324627,1705775451614,-208.779874,0.00036,7]
[312324628,1705775451624,-208.779874,0.00036,7]
[312324629,1705775451633,-155.0,0.00036,7]
[312324630,1705775451642,-203.0,0.00036,2]
[312324631,1705775451652,-2249.97682174,0.00036,2]
[312324632,1705775451661,-200000.0,0.00036064,15]
[312324633,1705775451669,-282.595631,0.00036064,7]
[312324634,1705775451678,-151.0,0.00036064,7]
[312324635,1705775451687,-225.936,0.00036064,7]
[312324636,1705775451697,-225.936,0.00036064,7]
[312324637,1705775451708,-175.860325,0.00036064,7]
[312324638,1705775451718,-175.860325,0.00036064,7]
[312324639,1705775451728,-151.0,0.00036064,7]
[312324640,1705775451738,-151.0,0.00036064,7]
[312324641,1705775451748,-151.0,0.00036064,7]
[312324642,1705775451757,-151.0,0.00036064,7]
[312324643,1705775451767,-466.231375,0.00036064,7]
[312324644,1705775451777,-466.231375,0.00036064,7]
[312324645,1705775451787,-151.0,0.00036064,7]
[312324646,1705775451797,-296.080364,0.00036064,7]
[312324647,1705775451806,-297.790666,0.00036064,7]
[312324648,1705775451816,-297.790666,0.00036064,7]
[312324649,1705775451825,-369.513576,0.00036064,7]
[312324650,1705775451835,-369.513576,0.00036064,7]
[312324651,1705775451844,-151.0,0.00036064,7]
[312324652,1705775451854,-220.195027,0.00036064,7]
[312324653,1705775451863,-220.195027,0.00036064,7]
[312324654,1705775451873,-1446.432708,0.00036064,7]
[312324655,1705775451882,-1446.432708,0.00036064,7]
[312324656,1705775451892,-151.0,0.00036064,7]
[312324657,1705775451901,-5419.892644,0.00036064,7]
[312324658,1705775451911,-5419.892644,0.00036064,7]
[312324659,1705775451920,-2459.887998,0.00036064,7]
[312324660,1705775451930,-2459.887998,0.00036064,7]
[312324661,1705775451939,-745.938325,0.00036064,7]
[312324662,1705775451948,-745.938325,0.00036064,7]
[312324663,1705775451958,-478.285678,0.00036064,7]
[312324664,1705775451968,-478.285678,0.00036064,7]
[312324665,1705775451977,-190.436654,0.00036064,7]
[312324666,1705775451987,-190.436654,0.00036064,7]
[312324667,1705775451997,-152.10519193,0.00036066,2]
[312324668,1705775452006,-150.63655993,0.00036066,2]
[312324669,1705775452016,-2000.0,0.00036066,2]
[312324670,1705775452025,-200.0,0.00036066,2]
[312324671,1705775452034,-2000.0,0.00036066,2]
[312324672,1705775452043,-200.0,0.00036066,2]
[312324673,1705775452053,-2000.0,0.00036066,2]
[312324674,1705775452063,-200.0,0.00036066,2]
[312324675,1705775452072,-589.45654133,0.00036077,2]
[312324676,1705775452081,-155.0,0.000361,4]
[312324677,1705775452091,-151.45839625,0.00036137,2]
[312324678,1705775452101,-1098.90576652,0.000362,2]
[312324679,1705775452110,-700.2,0.000362,2]
[312324680,1705775452119,-2624.94,0.000362,3]
[312324681,1705775452129,-2624.94,0.000362,3]
[312324682,1705775452139,-2624.94,0.000362,3]
[312324683,1705775452148,-2624.94,0.000362,3]
[312324684,1705775452158,-2624.94,0.000362,3]
[312324685,1705775452167,-2624.94,0.000362,3]
[312324686,1705775452177,-2624.94,0.000362,3]
[312324687,1705775452186,-2624.94,0.000362,3]
[312324688,1705775452196,-2624.94,0.000362,3]
[312324689,1705775452205,-2624.94,0.000362,3]
[312324690,1705775452215,-2624.94,0.000362,3]
[312324691,1705775452224,-2624.94,0.000362,3]
[312324692,1705775452233,-2624.94,0.000362,3]
[312324693,1705775452243,-2624.94,0.000362,3]
[312324694,1705775452254,-2624.94,0.000362,3]
[312324695,1705775452263,-2624.94,0.000362,3]
[312324696,1705775452273,-2624.94,0.000362,3]
[312324697,1705775452282,-2624.94,0.000362,3]
[312324698,1705775452291,-2624.94,0.000362,3]
[312324699,1705775452300,-2624.94,0.000362,3]
[312324700,1705775452309,-150.426493,0.00036287,2]
[312324701,1705775452318,-1310.461172,0.00036287,2]
[312324702,1705775452327,-2072.98982,0.00036287,2]
[312324703,1705775452337,-3738.781481,0.00036287,2]
[312324704,1705775452346,-10000.516877,0.00036287,2]
[312324705,1705775452355,-165.480453,0.00036287,2]
[312324706,1705775452364,-1381.993214,0.00036287,2]
[312324707,1705775452373,-1748.968389,0.00036287,2]
[312324708,1705775452382,-156.872299,0.00036287,2]
[312324709,1705775452391,-2000.0,0.00036334,2]
[312324710,1705775452400,-200.0,0.00036334,2]
[312324711,1705775452409,-2000.0,0.00036427,2]
[312324712,1705775452418,-200.0,0.00036427,2]
[312324713,1705775452427,-2000.0,0.00036427,2]
[312324714,1705775452436,-200.0,0.00036427,2]
[312324715,1705775452445,-2000.0,0.00036427,2]
[312324716,1705775452454,-200.0,0.00036427,2]
[312324717,1705775452464,-157.79,0.00036438,2]
[312324718,1705775452473,-500.0,0.00036447,3]
[312324719,1705775452482,-500.0,0.00036456,3]
[312324720,1705775452491,-500.0,0.00036465,3]
[312324721,1705775452501,-500.0,0.00036474,3]
[312324722,1705775452510,-150.0,0.00036482,2]
[312324723,1705775452519,-500.0,0.00036482,3]
[312324724,1705775452529,-356.4490492,0.0003649,10]
[312324725,1705775452538,-500.0,0.00036491,3]
[312324726,1705775452547,-267.14965432,0.00036499,2]
[312324727,1705775452557,-188.6362865,0.00036499,2]
[312324728,1705775452566,-500.0,0.000365,3]
[312324729,1705775452575,-153.84,0.0003653,2]
[312324730,1705775452585,-734.89,0.00036613,15]
[312324731,1705775452594,-615.27642738,0.00036697,2]
[312324732,1705775452603,-200.0,0.00036697,2]
[312324733,1705775452612,-700.2,0.000367,2]
[312324734,1705775452621,-510.374058,0.000367,2]
[312324735,1705775452631,-243.15262924,0.00036711,2]
[312324736,1705775452641,-1310.461172,0.00036741,2]
[312324737,1705775452650,-2072.98982,0.00036741,2]
[312324738,1705775452660,-10000.516877,0.00036741,2]
[312324739,1705775452669,-3738.781481,0.00036741,2]
[312324740,1705775452678,-1381.993214,0.00036741,2]
[312324741,1705775452688,-1748.968389,0.00036741,2]
[312324742,1705775452702,-156.872299,0.00036741,2]
[312324743,1705775452711,-2000.0,0.00036791,2]
[312324744,1705775452721,-200.0,0.00036791,2]
[312324745,1705775452730,-2000.0,0.00036791,2]
[312324746,1705775452742,-200.0,0.00036791,2]
[312324747,1705775452752,-207.68498122,0.00036791,2]
[312324748,1705775452761,-200.0,0.00036791,2]
[312324749,1705775452771,-194.0,0.00036835,2]
[312324750,1705775452780,-150.426493,0.00036892,2]
[312324751,1705775452789,-31375.83759417,0.00036897,2]
[312324752,1705775452798,-289602.68839522,0.000369,10]
[312324753,1705775452807,-255.0,0.000369,2]
[312324754,1705775452816,-159.820782,0.000369,7]
[312324755,1705775452825,-159.820782,0.000369,7]
[312324756,1705775452834,-300.0,0.000369,13]
[312324757,1705775452843,-1374.32,0.00036986,2]
[312324758,1705775452852,-666.0,0.00036986,2]
[312324759,1705775452861,-155.0,0.00036987,2]
[312324760,1705775452870,-100000.0,0.00037,7]
[312324761,1705775452880,-700.0,0.00037,2]
[312324762,1705775452889,-8000.0,0.00037,2]
[312324763,1705775452898,-650.0,0.00037,3]
[312324764,1705775452908,-670.0,0.00037,120]
[312324765,1705775452917,-1000.0,0.00037,2]
[312324766,1705775452926,-1000.0,0.00037,30]
[312324767,1705775452935,-6486.28485786,0.0003701,2]
[312324768,1705775452944,-2000.0,0.00037058,2]
[312324769,1705775452953,-200.0,0.00037064,2]
[312324770,1705775452963,-155.0,0.000371,7]
[312324771,1705775452972,-151.45839625,0.00037156,2]
[312324772,1705775452981,-200.0,0.00037159,2]
[312324773,1705775452990,-200.0,0.00037159,2]
[312324774,1705775453000,-1310.461172,0.00037194,2]
[312324775,1705775453009,-2072.98982,0.00037194,2]
[312324776,1705775453018,-10000.516877,0.00037194,2]
[312324777,1705775453028,-3738.781481,0.00037194,2]
[312324778,1705775453037,-1381.993214,0.00037194,2]
[312324779,1705775453047,-1748.968389,0.00037194,2]
[312324780,1705775453056,-156.872299,0.00037194,2]
[312324781,1705775453065,-700.2,0.000372,2]
[312324782,1705775453074,-157.91,0.000372,3]
[312324783,1705775453083,-157.91,0.000372,3]
[312324784,1705775453093,-157.91,0.000372,3]
[312324785,1705775453103,-157.91,0.000372,3]
[312324786,1705775453112,-152.59,0.000372,3]
[312324787,1705775453121,-152.59,0.000372,3]
[312324788,1705775453131,-150.0,0.00037275,2]
[312324789,1705775453140,-383.38,0.00037302,2]
[312324790,1705775453149,-153.84,0.00037443,2]
[312324791,1705775453158,-255.8,0.00037491,2]
[312324792,1705775453167,-166.71,0.00037491,2]
[312324793,1705775453177,-254.39,0.00037491,2]
[312324794,1705775453186,-150.426493,0.00037497,2]
[312324795,1705775453195,-2869.228,0.00037498,6]
[312324796,1705775453204,-4028.29628015,0.0003759,2]
[312324797,1705775453214,-434.0,0.000376,2]
[312324798,1705775453223,-344.0,0.000376,2]
[312324799,1705775453233,-1000.0,0.000376,2]
[312324800,1705775453242,-1310.461172,0.00037648,2]
[312324801,1705775453253,-2072.98982,0.00037648,2]
[312324802,1705775453262,-10000.516877,0.00037648,2]
[312324803,1705775453271,-3738.781481,0.00037648,2]
[312324804,1705775453280,-1381.993214,0.00037648,2]
[312324805,1705775453290,-156.872299,0.00037648,2]
[312324806,1705775453299,-1748.968389,0.00037648,2]
[312324807,1705775453308,-1000.0,0.00037669,2]
[312324808,1705775453317,-243.15262924,0.00037684,2]
[312324809,1705775453326,-151.0,0.000377,7]
[312324810,1705775453335,-581.01846,0.000377,7]
[312324811,1705775453344,-581.01846,0.000377,7]
[312324812,1705775453353,-393.169667,0.000377,7]
[312324813,1705775453363,-393.169667,0.000377,7]
[312324814,1705775453372,-208.779874,0.000377,7]
[312324815,1705775453382,-208.779874,0.000377,7]
[312324816,1705775453391,-745.938325,0.000377,7]
[312324817,1705775453401,-745.938317,0.000377,7]
[312324818,1705775453410,-478.285678,0.000377,7]
[312324819,1705775453419,-478.285684,0.000377,7]
[312324820,1705775453428,-75857.16,0.000377,3]
[312324821,1705775453438,-190.436654,0.000377,7]
[312324822,1705775453447,-190.436653,0.000377,7]
[312324823,1705775453457,-369.513576,0.00037755,7]
[312324824,1705775453466,-369.513576,0.00037755,7]
[312324825,1705775453476,-151.0,0.00037755,7]
[312324826,1705775453485,-220.195027,0.00037755,7]
[312324827,1705775453495,-220.195027,0.00037755,7]
[312324828,1705775453506,-1446.432708,0.00037755,7]
[312324829,1705775453515,-1446.432708,0.00037755,7]
[312324830,1705775453525,-14100.7130802,0.00037758,2]
[312324831,1705775453534,-1979.151167,0.00037758,2]
[312324832,1705775453544,-9253.2919,0.00037758,2]
[312324833,1705775453553,-3606.8283285,0.00037758,2]
[312324834,1705775453563,-160472.0052874,0.00037758,2]
[312324835,1705775453573,-36185.5999863,0.00037758,2]
[312324836,1705775453583,-225.936,0.00037758,7]
[312324837,1705775453593,-225.936,0.00037758,7]
[312324838,1705775453603,-175.860325,0.00037758,7]
[312324839,1705775453613,-175.860325,0.00037758,7]
[312324840,1705775453622,-151.0,0.00037758,7]
[312324841,1705775453632,-183.58419,0.00037758,7]
[312324842,1705775453643,-151.0,0.00037758,7]
[312324843,1705775453652,-151.0,0.00037758,7]
[312324844,1705775453662,-466.231375,0.00037758,7]
[312324845,1705775453671,-466.231375,0.00037758,7]
[312324846,1705775453681,-151.0,0.00037758,7]
[312324847,1705775453691,-297.790666,0.00037758,7]
[312324848,1705775453701,-297.790666,0.00037758,7]
[312324849,1705775453714,-151.0,0.00037758,7]
[312324850,1705775453723,-5419.892644,0.00037758,7]
[312324851,1705775453733,-5419.892644,0.00037758,7]
[312324852,1705775453742,-2459.887998,0.00037758,7]
[312324853,1705775453753,-2459.887998,0.00037758,7]
[312324854,1705775453763,-274.728445,0.00037781,7]
[312324855,1705775453772,-62751.67518834,0.00037781,2]
[312324856,1705775453783,-6068608.88492317,0.00037784,4]
[312324857,1705775453792,-151.0,0.00037784,7]
[312324858,1705775453802,-151.0,0.00037784,7]
[312324859,1705775453811,-159.820782,0.00037784,7]
[312324860,1705775453821,-159.820782,0.00037784,7]
[312324861,1705775453830,-151.0,0.00037784,7]
[312324862,1705775453839,-581.01846,0.00037784,7]
[312324863,1705775453849,-581.01846,0.00037784,7]
[312324864,1705775453858,-393.169667,0.00037784,7]
[312324865,1705775453868,-393.169667,0.00037784,7]
[312324866,1705775453878,-208.779874,0.00037784,7]
[312324867,1705775453887,-208.779874,0.00037784,7]
[312324868,1705775453896,-225.936,0.00037784,7]
[312324869,1705775453906,-225.936,0.00037784,7]
[312324870,1705775453916,-175.860325,0.00037784,7]
[312324871,1705775453925,-175.860325,0.00037784,7]
[312324872,1705775453934,-151.0,0.00037784,7]
[312324873,1705775453944,-189.390454,0.00037784,7]
[312324874,1705775453954,-151.0,0.00037784,7]
[312324875,1705775453963,-466.231375,0.00037784,7]
[312324876,1705775453973,-466.231378,0.00037784,7]
[312324877,1705775453982,-151.0,0.00037784,7]
[312324878,1705775453992,-297.790666,0.00037784,7]
[312324879,1705775454002,-297.790663,0.00037784,7]
[312324880,1705775454012,-369.513576,0.00037784,7]
[312324881,1705775454021,-369.513567,0.00037784,7]
[312324882,1705775454031,-151.0,0.00037784,7]
[312324883,1705775454041,-220.195027,0.00037784,7]
[312324884,1705775454051,-220.195036,0.00037784,7]
[312324885,1705775454061,-1446.432708,0.00037784,7]
[312324886,1705775454071,-1446.432716,0.00037784,7]
[312324887,1705775454081,-60867.86349596,0.00037784,2]
[312324888,1705775454091,-60867.86349596,0.00037784,2]
[312324889,1705775454101,-151.0,0.00037784,7]
[312324890,1705775454111,-5419.892644,0.00037784,7]
[312324891,1705775454121,-5419.892646,0.00037784,7]
[312324892,1705775454131,-2459.887998,0.00037784,7]
[312324893,1705775454141,-2459.887998,0.00037784,7]
[312324894,1705775454151,-1511.94,0.000378,7]
[312324895,1705775454161,-3684.83,0.000378,7]
[312324896,1705775454170,-749.22,0.000378,7]
[312324897,1705775454181,-700.2,0.000378,2]
[312324898,1705775454191,-16227.08,0.00037808,2]
[312324899,1705775454201,-748.44,0.000379,2]
[312324900,1705775454210,-151.0,0.000379,7]
[312324901,1705775454220,-581.01846,0.000379,7]
[312324902,1705775454230,-581.01846,0.000379,7]
[312324903,1705775454239,-393.169667,0.000379,7]
[312324904,1705775454250,-393.169667,0.000379,7]
[312324905,1705775454260,-208.779874,0.000379,7]
[312324906,1705775454269,-208.779874,0.000379,7]
[312324907,1705775454278,-225.936,0.000379,7]
[312324908,1705775454288,-225.936005,0.000379,7]
[312324909,1705775454298,-175.860325,0.000379,7]
[312324910,1705775454307,-175.860329,0.000379,7]
[312324911,1705775454317,-151.0,0.000379,7]
[312324912,1705775454326,-300.0,0.000379,13]
[312324913,1705775454336,-697676.043519,0.000379,3]
[312324914,1705775454346,-207.0,0.00037933,26]
[312324915,1705775454355,-267.14965432,0.00037999,2]
[312324916,1705775454365,-188.6362865,0.00037999,2]
[312324917,1705775454374,-100000.0,0.00038,8]
[312324918,1705775454384,-155.0,0.00038,4]
[312324919,1705775454393,-1000.0,0.00038,24]
[312324920,1705775454402,-1000.0,0.00038,24]
[312324921,1705775454412,-1000.0,0.00038,24]
[312324922,1705775454421,-1000.0,0.00038,24]
[312324923,1705775454431,-1000.0,0.00038,5]
[312324924,1705775454441,-2000.0,0.00038,30]
[312324925,1705775454450,-150.0,0.00038068,2]
[312324926,1705775454461,-1310.461172,0.00038102,2]
[312324927,1705775454471,-2072.98982,0.00038102,2]
[312324928,1705775454482,-10000.516877,0.00038102,2]
[312324929,1705775454491,-3738.781481,0.00038102,2]
[312324930,1705775454502,-165.480453,0.00038102,2]
[312324931,1705775454512,-1381.993214,0.00038102,2]
[312324932,1705775454522,-156.872299,0.00038102,2]
[312324933,1705775454532,-1748.968389,0.00038102,2]
[312324934,1705775454542,-150.426493,0.00038102,2]
[312324935,1705775454552,-151.45839625,0.00038174,2]
[312324936,1705775454562,-500.0,0.000382,15]
[312324937,1705775454572,-155.0,0.000382,7]
[312324938,1705775454582,-150.0,0.0003827,2]
[312324939,1705775454592,-150.0,0.0003827,2]
[312324940,1705775454601,-700.2,0.000383,2]
[312324941,1705775454611,-1000.0,0.00038339,2]
[312324942,1705775454622,-1374.32,0.00038356,2]
[312324943,1705775454632,-153.84,0.00038356,2]
[312324944,1705775454641,-750.0,0.000384,2]
[312324945,1705775454651,-2000.0,0.000384,2]
[312324946,1705775454661,-401.0,0.000384,2]
[312324947,1705775454671,-244.50752462,0.000384,2]
[312324948,1705775454682,-2830.31622058,0.000384,2]
[312324949,1705775454693,-417.0,0.000384,2]
[312324950,1705775454891,-150.63655993,0.00038459,2]
[312324951,1705775454907,-2272.65401895,0.000385,3]
[312324952,1705775454917,-2000.0,0.000385,30]
[312324953,1705775454926,-6486.28485786,0.00038588,2]
[312324954,1705775454936,-25285.71,0.000387,4]
[312324955,1705775454945,-1000.0,0.00038705,10]
[312324956,1705775454955,-1000.0,0.00038705,10]
[312324957,1705775454964,-1000.0,0.00038705,10]
[312324958,1705775454973,-1000.0,0.00038705,10]
[312324959,1705775454983,-1000.0,0.00038705,10]
[312324960,1705775454992,-1000.0,0.00038712,10]
[312324961,1705775455004,-1000.0,0.00038712,10]
[312324962,1705775455014,-1000.0,0.00038712,10]
[312324963,1705775455024,-1000.0,0.00038712,10]
[312324964,1705775455033,-1177.96685184,0.00038765,2]
[312324965,1705775455043,-26612.58707247,0.000388,4]
[312324966,1705775455053,-14866.94974667,0.000388,30]
[312324967,1705775455063,-700.2,0.000388,2]
[312324968,1705775455072,-1026.0,0.00038845,2]
[312324969,1705775455081,-150.0,0.00038861,2]
[312324970,1705775455091,-1456.57954265,0.000389,15]
[312324971,1705775455100,-131613.95495673,0.0003897,4]
[312324972,1705775455110,-21204.94182775,0.0003897,2]
[312324973,1705775455120,-151.0,0.0003897,7]
[312324974,1705775455129,-151.0,0.0003897,7]
[312324975,1705775455138,-159.820782,0.0003897,7]
[312324976,1705775455148,-159.820782,0.0003897,7]
[312324977,1705775455158,-1778.89,0.00038977,5]
[312324978,1705775455167,-281.9628098,0.0003898,2]
[312324979,1705775455177,-100000.0,0.00039,9]
[312324980,1705775455186,-197.01513932,0.00039,4]
[312324981,1705775455196,-975.72594921,0.00039,4]
[312324982,1705775455205,-1428.56752818,0.00039,2]
[312324983,1705775455215,-18322.26213032,0.00039,2]
[312324984,1705775455224,-235110.46010417,0.00039,2]
[312324985,1705775455234,-2000.0,0.00039,30]
[312324986,1705775455243,-151.0,0.00039,7]
[312324987,1705775455254,-581.01846,0.00039,7]
[312324988,1705775455264,-581.01846,0.00039,7]
[312324989,1705775455273,-393.169667,0.00039,7]
[312324990,1705775455282,-393.169667,0.00039,7]
[312324991,1705775455292,-208.779874,0.00039,7]
[312324992,1705775455301,-208.779874,0.00039,7]
[312324993,1705775455311,-2624.94,0.00039,3]
[312324994,1705775455321,-2624.94,0.00039,3]
[312324995,1705775455331,-2624.94,0.00039,3]
[312324996,1705775455341,-2624.94,0.00039,3]
[312324997,1705775455350,-2624.94,0.00039,3]
[312324998,1705775455360,-2624.94,0.00039,3]
[312324999,1705775455369,-2624.94,0.00039,3]
[312325000,1705775455378,-2624.94,0.00039,3]
[312325001,1705775455387,-2624.94,0.00039,3]
[312325002,1705775455397,-2624.94,0.00039,3]
[312325003,1705775455406,-2624.94,0.00039,3]
[312325004,1705775455415,-2624.94,0.00039,3]
[312325005,1705775455424,-2624.94,0.00039,3]
[312325006,1705775455433,-2624.94,0.00039,3]
[312325007,1705775455442,-2624.94,0.00039,3]
[312325008,1705775455452,-2624.94,0.00039,3]
[312325009,1705775455461,-2624.94,0.00039,3]
[312325010,1705775455470,-2624.94,0.00039,3]
[312325011,1705775455479,-2624.94,0.00039,3]
[312325012,1705775455489,-2624.94,0.00039,3]
[312325013,1705775455498,-150.91,0.00039,2]
[312325014,1705775455507,-150.91,0.00039,2]
[312325015,1705775455517,-150.91,0.00039,2]
[312325016,1705775455526,-150.91,0.00039,2]
[312325017,1705775455536,-150.91,0.00039,2]
[312325018,1705775455546,-150.91,0.00039,2]
[312325019,1705775455555,-150.91,0.00039,2]
[312325020,1705775455564,-150.91,0.00039,2]
[312325021,1705775455574,-150.91,0.00039,2]
[312325022,1705775455584,-150.91,0.00039,2]
[312325023,1705775455593,-150.91,0.00039,2]
[312325024,1705775455602,-150.91,0.00039,2]
[312325025,1705775455612,-150.91,0.00039,2]
[312325026,1705775455621,-150.91,0.00039,2]
[312325027,1705775455631,-150.91,0.00039,2]
[312325028,1705775455641,-150.91,0.00039,2]
[312325029,1705775455651,-150.91,0.00039,2]
[312325030,1705775455661,-150.91,0.00039,2]
[312325031,1705775455671,-150.91,0.00039,2]
[312325032,1705775455681,-150.91,0.00039,2]
[312325033,1705775455691,-150.91,0.00039,2]